fUSD/lending_fUSD_20240329
["ID","MTS","AMOUNT","RATE_DAILY","PERIOD"]
[321004002,1711742954103,-291.33185209,0.000369,2]
[321004007,1711743032156,-516.69990899,0.0003689,2]
[321004008,1711743032166,-516.69990899,0.0003689,2]
[321004009,1711743032175,-234.96,0.0003689,2]
[321004010,1711743032184,-234.96,0.0003689,2]
[321004011,1711743032193,-234.96,0.0003689,2]
[321004012,1711743032202,-234.96,0.0003689,2]
[321004013,1711743032212,-106.11367764,0.0003689,2]
[321004014,1711743032327,-128.84632236,0.0003689,2]
[321004015,1711743032336,-215.58397521,0.0003689,2]
[321004016,1711743032366,-19.37602479,0.0003689,2]
[321004017,1711743032375,-234.96,0.0003689,2]
[321004018,1711743032385,-234.96,0.0003689,2]
[321004019,1711743032395,-234.96,0.0003689,2]
[321004020,1711743032405,-234.96,0.0003689,2]
[321004021,1711743032414,-402.86177975,0.00036897,4]
[321004022,1711743032424,-931.14200947,0.00036898,4]
[321004023,1711743032433,-184.9010278,0.00036898,4]
[321004024,1711743032442,-934.16335635,0.00036898,4]
[321004025,1711743032454,-43.54385837,0.00036898,4]
[321004026,1711743032463,-442.75340715,0.00036899,4]
[321004027,1711743032472,-498.16027288,0.00036899,4]
[321004028,1711743032483,-156.66438635,0.00036899,4]
[321004029,1711743032492,-310254.97616027,0.000369,2]
[321004030,1711743032503,-368.6945,0.000369,2]
[321004031,1711743032515,-349.73942322,0.000369,2]
[321004032,1711743032659,-585140.52630895,0.000369,2]
[321004128,1711743038159,-806.66678365,0.000369,2]
[321004131,1711743038182,-741.27723955,0.000369,2]
[321004133,1711743038194,-420.8888349,0.000369,2]
[321004134,1711743038207,-298.52743707,0.000369,2]
[321004135,1711743038220,-362.69102512,0.000369,2]
[321004136,1711743038264,-1797.91481912,0.000369,2]
[321004137,1711743038375,-1847008.42741316,0.000369,2]
[321004138,1711743038385,-158.95,0.000369,7]
[321004139,1711743038395,-1500.0,0.000369,13]
[321004140,1711743038406,-165.3,0.000369,2]
[321004141,1711743038416,-427.17025912,0.000369,4]
[321004142,1711743038425,-161.63,0.000369,2]
[321004143,1711743038436,-516.69990899,0.0003699,2]
[321004144,1711743038445,-1076.17132504,0.00036996,2]
[321004145,1711743038455,-155.0,0.00036998,4]
[321004146,1711743038465,-1277.65210038,0.00036998,4]
[321004147,1711743038475,-155.0,0.00036998,4]
[321004148,1711743038484,-511.39066358,0.00036998,4]
[321004149,1711743038494,-203.11419141,0.00036998,4]
[321004150,1711743038505,-400.0,0.00036998,2]
[321004151,1711743038514,-361.10221362,0.00036998,4]
[321004152,1711743038524,-173.86016759,0.00036998,4]
[321004153,1711743038535,-155.81018753,0.00036998,4]
[321004155,1711743038549,-294.24389861,0.00036998,4]
[321004157,1711743038559,-3054.88944436,0.00036998,2]
[321004158,1711743038569,-990.95267518,0.00036998,4]
[321004159,1711743038580,-2556.41401273,0.00036999,4]
[321004160,1711743038589,-367.60722122,0.00036999,30]
[321004161,1711743038600,-265131.40456212,0.00037,4]
[321004162,1711743038611,-166.1543771,0.00037481,2]
[321004163,1711743038621,-501.84,0.00037581,2]
[321004164,1711743038631,-175.51,0.00038356,2]
[321004165,1711743038641,-507.0,0.000385,2]
[321004166,1711743038652,-343.0,0.000385,2]
[321004167,1711743038662,-3541.38528137,0.0003897,2]
[321004168,1711743038672,-996.05,0.00039625,2]
[321004169,1711743038682,-152.29762082,0.000397,5]
[321004170,1711743038693,-501.84,0.00039845,2]
[321004171,1711743038703,-477.53316459,0.0004,4]
[321004172,1711743038712,-192.35052739,0.0004,2]
[321004173,1711743038722,-165.3,0.000402,7]
[321004174,1711743038731,-161.63,0.000402,7]
[321004175,1711743038741,-156.39,0.00040266,15]
[321004176,1711743038751,-150.0,0.00040352,2]
[321004177,1711743038761,-158.95,0.000404,7]
[321004178,1711743038771,-313.8048114,0.00040513,2]
[321004179,1711743038780,-168.46508714,0.000408,10]
[321004180,1711743038790,-250.0,0.00041164,112]
[321004181,1711743038799,-246.44882681,0.00041239,13]
[321004182,1711743038810,-1900.0,0.000419,15]
[321004183,1711743038824,-501.84,0.00042109,2]
[321004184,1711743038836,-184.04273991,0.00042139,2]
[321004185,1711743038847,-711.62775686,0.0004215,16]
[321004186,1711743038856,-61843.75371469,0.00042215,2]
[321004187,1711743038866,-3883.70900597,0.00042215,2]
[321004188,1711743038876,-511.67336748,0.00042215,2]
[321004189,1711743038885,-5318.24516013,0.00042215,2]
[321004190,1711743038895,-299.999999,0.00042215,2]
[321004191,1711743038906,-499.999999,0.00042215,2]
[321004192,1711743038915,-446474.91225207,0.00042215,7]
[321004193,1711743038926,-22425.18158942,0.00042215,2]
[321004194,1711743038936,-21770.00279156,0.00042215,2]
[321004195,1711743038945,-407.0,0.00042215,2]
[321004196,1711743038955,-300.0,0.00042238,10]
[321004197,1711743038965,-300.0,0.00042238,10]
[321004198,1711743038975,-248.79434329,0.00042349,4]
[321004199,1711743038985,-180.87305966,0.00042349,4]
[321004200,1711743038995,-996.05,0.00042365,2]
[321004201,1711743039005,-150.0,0.00042386,120]
[321004202,1711743039015,-161.63,0.000424,7]
[321004203,1711743039024,-165.3,0.000425,7]
[321004204,1711743039034,-152.29762082,0.000426,16]
[321004205,1711743039044,-879.82,0.00043161,2]
[321004206,1711743039054,-158.95,0.000435,7]
[321004207,1711743039064,-711.62775679,0.00043673,18]
[321004208,1711743039075,-156.39,0.00043691,15]
[321004209,1711743039086,-313.8048114,0.00044225,2]
[321004210,1711743039096,-501.84,0.00044373,2]
[321004211,1711743039106,-168.46508714,0.000448,12]
[321004212,1711743039116,-10413.46640118,0.00045,5]
[321004213,1711743039126,-161.63,0.00045,7]
[321004214,1711743039136,-711.62775679,0.00045195,20]
[321004215,1711743039146,-152.29762082,0.000455,27]
[321004216,1711743039156,-167.4,0.00045999,2]
[321004217,1711743039167,-165.17,0.00046285,2]
[321004218,1711743039177,-180.0,0.00046341,120]
[321004219,1711743039187,-501.84,0.00046637,2]
[321004220,1711743039197,-711.62775679,0.00046718,22]
[321004221,1711743039207,-1000.0,0.00046742,2]
[321004222,1711743039217,-158.95,0.000468,7]
[321004223,1711743039226,-156.39,0.00047116,15]
[321004224,1711743039236,-153.30888088,0.0004748,30]
[321004225,1711743039245,-313.8048114,0.00047938,2]
[321004226,1711743039255,-155.0,0.00048,15]
[321004227,1711743039266,-151.0,0.00048,120]
[321004228,1711743039278,-150.0,0.00048,9]
[321004229,1711743039290,-161.63,0.00048,7]
[321004230,1711743039299,-21948.4449,0.0004819,2]
[321004231,1711743039310,-245000.0,0.0004819,2]
[321004232,1711743039320,-711.62775679,0.00048241,24]
[321004233,1711743039330,-228274.35696187,0.0004829,10]
[321004234,1711743039340,-152.29762082,0.000484,38]
[321004235,1711743039349,-150.0,0.000485,9]
[321004236,1711743039359,-151.0,0.00048603,120]
[321004237,1711743039369,-168.46508714,0.000488,13]
[321004238,1711743039379,-5853.10426205,0.00048898,2]
[321004239,1711743039388,-501.84,0.00048901,2]
[321004240,1711743039398,-153.8837778,0.00048936,30]
[321004241,1711743039409,-1200.0,0.00049,4]
[321004242,1711743039418,-1000.0,0.00049,3]
[321004243,1711743039428,-600.0,0.00049,50]
[321004244,1711743039438,-158.95,0.00049,7]
[321004245,1711743039447,-150.0,0.00049,9]
[321004246,1711743039457,-1000.0,0.000491,4]
[321004247,1711743039467,-151.0,0.00049205,120]
[321004248,1711743039477,-1039.0,0.00049253,117]
[321004249,1711743039486,-1076.41,0.00049296,120]
[321004250,1711743039496,-1284.35,0.00049315,60]
[321004251,1711743039506,-151.0,0.00049315,120]
[321004252,1711743039516,-151.0,0.00049315,120]
[321004253,1711743039526,-151.0,0.00049315,120]
[321004254,1711743039536,-151.0,0.00049315,120]
[321004255,1711743039546,-446.956826,0.00049315,120]
[321004256,1711743039555,-446.956826,0.00049315,120]
[321004257,1711743039565,-200.269448,0.00049315,120]
[321004258,1711743039574,-151.0,0.00049315,120]
[321004259,1711743039586,-151.0,0.00049315,120]
[321004260,1711743039595,-151.0,0.00049315,120]
[321004261,1711743039605,-167.123996,0.00049315,120]
[321004262,1711743039614,-151.0,0.00049315,120]
[321004263,1711743039635,-151.0,0.00049315,120]
[321004264,1711743039646,-151.0,0.00049315,120]
[321004265,1711743039657,-151.0,0.00049315,120]
[321004266,1711743039668,-151.0,0.00049315,120]
[321004267,1711743039678,-2497.904685,0.00049315,120]
[321004268,1711743039688,-2497.904685,0.00049315,120]
[321004269,1711743039699,-151.0,0.00049315,120]
[321004270,1711743039709,-151.0,0.00049315,7]
[321004271,1711743039720,-151.0,0.00049315,120]
[321004272,1711743039731,-151.0,0.00049315,120]
[321004273,1711743039741,-151.0,0.00049315,21]
[321004274,1711743039752,-151.858277,0.00049315,3]
[321004275,1711743039762,-151.0,0.00049315,120]
[321004276,1711743039772,-151.0,0.00049315,120]
[321004277,1711743039782,-151.0,0.00049315,120]
[321004278,1711743039793,-151.0,0.00049315,120]
[321004279,1711743039802,-151.0,0.00049315,30]
[321004280,1711743039812,-151.0,0.00049315,120]
[321004281,1711743039822,-151.0,0.00049315,120]
[321004282,1711743039833,-151.0,0.00049315,120]
[321004283,1711743039843,-153.347695,0.00049315,60]
[321004284,1711743039853,-160.581668,0.00049315,45]
[321004285,1711743039864,-151.0,0.00049315,30]
[321004286,1711743039874,-153.768911,0.00049315,120]
[321004287,1711743039884,-160.581668,0.00049315,45]
[321004288,1711743039894,-151.0,0.00049315,120]
[321004289,1711743039906,-264.854952,0.00049315,30]
[321004290,1711743039916,-151.0,0.00049315,120]
[321004291,1711743039928,-151.0,0.00049315,120]
[321004292,1711743039938,-388.124049,0.00049315,120]
[321004293,1711743039949,-151.0,0.00049315,120]
[321004294,1711743039959,-388.124049,0.00049315,120]
[321004295,1711743039970,-161.63,0.000494,7]
[321004296,1711743039981,-1000.0,0.000495,4]
[321004297,1711743039990,-150.0,0.000495,10]
[321004298,1711743040001,-711.62775679,0.00049764,26]
[321004299,1711743040010,-16499.2809,0.000498,2]
[321004300,1711743040021,-100000.0,0.000498,2]
[321004301,1711743040030,-323.2715,0.000498,2]
[321004302,1711743040040,-153.777198,0.000498,120]
[321004303,1711743040049,-151.0,0.000498,120]
[321004304,1711743040059,-196.332111,0.000498,120]
[321004305,1711743040070,-151.0,0.000498,120]
[321004306,1711743040079,-196.332111,0.000498,120]
[321004307,1711743040089,-324.384414,0.000498,120]
[321004308,1711743040100,-324.384414,0.000498,120]
[321004309,1711743040110,-151.0,0.000498,120]
[321004310,1711743040120,-151.0,0.000498,120]
[321004311,1711743040129,-151.0,0.000498,120]
[321004312,1711743040139,-151.0,0.000498,120]
[321004313,1711743040150,-151.0,0.000498,30]
[321004314,1711743040162,-151.0,0.000498,30]
[321004315,1711743040171,-151.0,0.000498,120]
[321004316,1711743040181,-151.0,0.000498,120]
[321004317,1711743040191,-151.0,0.000498,14]
[321004318,1711743040200,-151.0,0.000498,120]
[321004319,1711743040210,-151.0,0.000498,120]
[321004320,1711743040220,-151.0,0.000498,120]
[321004321,1711743040229,-182.334376,0.000498,120]
[321004322,1711743040239,-343.81093,0.000498,120]
[321004323,1711743040250,-343.81093,0.000498,120]
[321004324,1711743040261,-294.828451,0.000498,120]
[321004325,1711743040271,-479.197926,0.000498,120]
[321004326,1711743040281,-151.0,0.000498,120]
[321004327,1711743040291,-294.828451,0.000498,120]
[321004328,1711743040300,-479.197926,0.000498,120]
[321004329,1711743040310,-151.0,0.000498,7]
[321004330,1711743040321,-205.261852,0.000498,120]
[321004331,1711743040330,-205.261852,0.000498,120]
[321004332,1711743040345,-151.0,0.000498,120]
[321004333,1711743040355,-151.0,0.000498,120]
[321004334,1711743040365,-151.0,0.000498,120]
[321004335,1711743040375,-151.0,0.000498,7]
[321004336,1711743040385,-640.024298,0.000498,60]
[321004337,1711743040395,-640.024298,0.000498,60]
[321004338,1711743040406,-151.0,0.000498,120]
[321004339,1711743040417,-151.0,0.000498,120]
[321004340,1711743040426,-151.0,0.000498,120]
[321004341,1711743040437,-198.411496,0.000498,120]
[321004342,1711743040447,-151.0,0.000498,120]
[321004343,1711743040457,-198.411496,0.000498,120]
[321004344,1711743040466,-151.0,0.000498,120]
[321004345,1711743040476,-151.0,0.000498,120]
[321004346,1711743040486,-151.0,0.000498,120]
[321004347,1711743040497,-151.0,0.000498,120]
[321004348,1711743040508,-446.956826,0.000498,120]
[321004349,1711743040518,-446.956826,0.000498,120]
[321004350,1711743040529,-151.0,0.000498,120]
[321004351,1711743040539,-151.0,0.000498,120]
[321004352,1711743040549,-151.0,0.000498,120]
[321004353,1711743040559,-151.0,0.000498,120]
[321004354,1711743040569,-184.484569,0.000498,120]
[321004355,1711743040579,-151.0,0.000498,120]
[321004356,1711743040590,-151.0,0.000498,120]
[321004357,1711743040600,-2497.904685,0.000498,120]
[321004358,1711743040609,-2497.904685,0.000498,120]
[321004359,1711743040619,-151.0,0.000498,120]
[321004360,1711743040629,-175.735137,0.000498,7]
[321004361,1711743040639,-151.0,0.000498,120]
[321004362,1711743040649,-225.95589,0.000498,120]
[321004363,1711743040660,-151.0,0.000498,120]
[321004364,1711743040670,-151.0,0.000498,120]
[321004365,1711743040679,-151.0,0.000498,120]
[321004366,1711743040689,-151.0,0.000498,120]
[321004367,1711743040700,-151.0,0.000498,120]
[321004368,1711743040709,-160.581668,0.000498,45]
[321004369,1711743040719,-151.0,0.000498,30]
[321004370,1711743040729,-160.581668,0.000498,45]
[321004371,1711743040739,-151.0,0.000498,120]
[321004372,1711743040749,-153.073829,0.000498,120]
[321004373,1711743040759,-151.0,0.000498,120]
[321004374,1711743040769,-388.124049,0.000498,120]
[321004375,1711743040780,-151.0,0.000498,120]
[321004376,1711743040792,-388.124049,0.000498,120]
[321004377,1711743040802,-151.0,0.00049808,120]
[321004378,1711743040812,-1177.0,0.00049964,2]
[321004379,1711743040822,-2451.0,0.00049964,2]
[321004380,1711743040832,-4775.0,0.00049964,2]
[321004381,1711743040842,-5685.0,0.00049964,2]
[321004382,1711743040852,-42999.0,0.00049964,2]
[321004383,1711743040861,-1047.0,0.00049964,2]
[321004384,1711743040871,-229.44411806,0.0005,2]
[321004385,1711743040881,-373.32,0.0005,120]
[321004386,1711743040890,-217.10459111,0.0005,4]
[321004387,1711743040900,-32646.0,0.0005,4]
[321004388,1711743040910,-19208.42968041,0.0005,30]
[321004389,1711743040920,-5000.0,0.0005,120]
[321004390,1711743040936,-27047.25475744,0.0005,4]
[321004391,1711743040946,-155.23479682,0.0005,4]
[321004392,1711743040956,-22054.88876554,0.0005,4]
[321004393,1711743040966,-837.45168303,0.0005,2]
[321004394,1711743040978,-434.87733397,0.0005,28]
[321004395,1711743040988,-160.33643555,0.0005,30]
[321004396,1711743040997,-40447.0,0.0005,120]
[321004397,1711743041007,-2535.0,0.0005,16]
[321004398,1711743041017,-233.58036097,0.0005,4]
[321004399,1711743041027,-359.1700641,0.0005,2]
[321004400,1711743041037,-151.0,0.0005,120]
[321004401,1711743041047,-800.73645461,0.0005,30]
[321004402,1711743041056,-5000.0,0.0005,30]
[321004403,1711743041066,-150.0,0.0005,10]
[321004404,1711743041075,-5000.0,0.0005,120]
[321004405,1711743041085,-1602.34,0.00050125,120]
[321004406,1711743041094,-1284.35,0.00050136,64]
[321004407,1711743041105,-156.98852473,0.00050142,60]
[321004408,1711743041114,-150.0,0.000502,10]
[321004409,1711743041123,-151.0,0.00050411,120]
[321004410,1711743041133,-158.95,0.000505,7]
[321004411,1711743041142,-150.0,0.000505,10]
[321004412,1711743041153,-156.39,0.0005054,120]
[321004413,1711743041162,-153.8837778,0.00050618,60]
[321004414,1711743041171,-3000.0,0.00050684,120]
[321004415,1711743041181,-150.0,0.000507,10]
[321004416,1711743041190,-17598.0,0.000508,120]
[321004417,1711743041200,-3000.0,0.00050821,120]
[321004418,1711743041209,-5853.10426205,0.00050899,2]
[321004419,1711743041219,-158.24079661,0.000509,120]
[321004420,1711743041228,-158.2407966,0.000509,120]
[321004421,1711743041238,-158.2407966,0.000509,120]
[321004422,1711743041248,-158.2407966,0.000509,120]
[321004423,1711743041257,-158.2407966,0.000509,120]
[321004424,1711743041266,-158.2407966,0.000509,120]
[321004425,1711743041276,-158.2407966,0.000509,120]
[321004426,1711743041285,-158.2407966,0.000509,120]
[321004427,1711743041295,-158.2407966,0.000509,120]
[321004428,1711743041305,-158.2407966,0.000509,120]
[321004429,1711743041314,-158.2407966,0.000509,120]
[321004430,1711743041324,-158.2407966,0.000509,120]
[321004431,1711743041334,-158.2407966,0.000509,120]
[321004432,1711743041344,-158.2407966,0.000509,120]
[321004433,1711743041353,-158.2407966,0.000509,120]
[321004434,1711743041363,-158.2407966,0.000509,120]
[321004435,1711743041372,-151.0,0.00050916,2]
[321004436,1711743041382,-360.0527811,0.00050958,120]
[321004437,1711743041392,-1284.35,0.00050958,68]
[321004438,1711743041403,-10000.0,0.00051,2]
[321004439,1711743041412,-150.0,0.00051,10]
[321004440,1711743041422,-10000.0,0.00051,120]
[321004441,1711743041431,-161.63,0.00051,7]
[321004442,1711743041441,-151.0,0.00051014,120]
[321004443,1711743041686,-150.0,0.00051108,7]
[321004444,1711743041696,-10036.32396178,0.00051139,50]
[321004445,1711743041706,-150.0,0.00051155,7]
[321004446,1711743041715,-150.0,0.00051158,7]
[321004447,1711743041724,-501.84,0.00051165,2]
[321004448,1711743041733,-150.0,0.00051191,7]
[321004449,1711743041743,-150.0,0.00051199,7]
[321004450,1711743041752,-150.0,0.000512,10]
[321004451,1711743041762,-150.0,0.00051205,7]
[321004452,1711743041771,-150.0,0.0005121,7]
[321004453,1711743041780,-156.151891,0.00051241,30]
[321004454,1711743041790,-230.2047,0.00051241,30]
[321004455,1711743041805,-192.347555,0.00051241,30]
[321004456,1711743041815,-150.0,0.0005125,7]
[321004457,1711743041824,-204193.65703746,0.00051258,120]
[321004458,1711743042157,-56085.35747961,0.00051258,120]
[321004459,1711743042166,-151.0,0.00051258,120]
[321004460,1711743042175,-151.0,0.00051258,120]
[321004461,1711743042184,-196.530734,0.00051258,120]
[321004462,1711743042193,-151.0,0.00051258,7]
[321004463,1711743042202,-640.024298,0.00051258,60]
[321004464,1711743042212,-640.024298,0.00051258,60]
[321004465,1711743042221,-151.0,0.00051258,120]
[321004466,1711743042231,-151.0,0.00051258,120]
[321004467,1711743042240,-151.0,0.00051258,120]
[321004468,1711743042248,-198.411496,0.00051258,120]
[321004469,1711743042258,-151.0,0.00051258,120]
[321004470,1711743042267,-198.411496,0.00051258,120]
[321004471,1711743042276,-205.868362,0.00051258,120]
[321004472,1711743042286,-151.0,0.00051258,120]
[321004473,1711743042295,-151.0,0.00051258,120]
[321004474,1711743042304,-446.956826,0.00051258,120]
[321004475,1711743042313,-151.0,0.00051258,120]
[321004476,1711743042322,-446.956826,0.00051258,120]
[321004477,1711743042331,-151.0,0.00051258,120]
[321004478,1711743042340,-151.0,0.00051258,120]
[321004479,1711743042350,-151.0,0.00051258,120]
[321004480,1711743042359,-151.0,0.00051258,120]
[321004481,1711743042368,-151.0,0.00051258,120]
[321004482,1711743042377,-151.0,0.00051258,120]
[321004483,1711743042386,-2497.904685,0.00051258,120]
[321004484,1711743042396,-2497.904685,0.00051258,120]
[321004485,1711743042406,-151.0,0.00051258,120]
[321004486,1711743042415,-151.0,0.00051258,120]
[321004487,1711743042424,-151.0,0.00051258,120]
[321004488,1711743042433,-151.0,0.00051258,120]
[321004489,1711743042443,-151.0,0.00051258,120]
[321004490,1711743042452,-151.0,0.00051258,120]
[321004491,1711743042462,-160.581668,0.00051258,45]
[321004492,1711743042472,-151.0,0.00051258,30]
[321004493,1711743042481,-160.581668,0.00051258,45]
[321004494,1711743042491,-151.172693,0.00051258,120]
[321004495,1711743042500,-151.0,0.00051258,120]
[321004496,1711743042509,-388.124049,0.00051258,120]
[321004497,1711743042518,-151.0,0.00051258,120]
[321004498,1711743042528,-388.124049,0.00051258,120]
[321004499,1711743042537,-150.0,0.00051283,7]
[321004500,1711743042546,-711.62775679,0.00051286,28]
[321004501,1711743042556,-689.71935,0.000513,55]
[321004502,1711743042565,-152.29762082,0.000513,49]
[321004503,1711743042574,-150.0,0.00051324,7]
[321004504,1711743042583,-150.0,0.0005133,7]
[321004505,1711743042592,-150.0,0.00051333,7]
[321004506,1711743042601,-150.0,0.00051335,7]
[321004507,1711743042611,-150.0,0.0005135,7]
[321004508,1711743042620,-150.0,0.00051352,7]
[321004509,1711743042629,-36117.7925622,0.0005139,2]
[321004510,1711743042638,-150.0,0.00051391,7]
[321004511,1711743042647,-150.0,0.00051391,7]
[321004512,1711743042657,-10000.0,0.000514,120]
[321004513,1711743042666,-151.0,0.00051425,120]
[321004514,1711743042675,-150.993,0.00051464,120]
[321004515,1711743042684,-836.019,0.00051464,120]
[321004516,1711743042693,-962.0,0.00051464,120]
[321004517,1711743042702,-493.468,0.00051464,120]
[321004518,1711743042711,-150.0,0.00051464,120]
[321004519,1711743042720,-1253.0,0.00051464,120]
[321004520,1711743042729,-544.352,0.00051464,120]
[321004521,1711743042738,-1226.0,0.00051464,120]
[321004522,1711743042750,-433.0,0.00051464,120]
[321004523,1711743042759,-1268.0,0.00051464,120]
[321004524,1711743042768,-659.743,0.00051464,120]
[321004525,1711743042777,-279.0,0.00051464,120]
[321004526,1711743042786,-803.0,0.00051464,120]
[321004527,1711743042795,-1154.797,0.00051464,120]
[321004528,1711743042804,-1496.336,0.00051464,120]
[321004529,1711743042814,-2983.0,0.00051464,120]
[321004530,1711743042823,-211.075,0.00051464,120]
[321004531,1711743042832,-396.0,0.00051464,120]
[321004533,1711743042842,-2425.0,0.00051464,120]
[321004534,1711743042852,-1664.627,0.00051464,120]
[321004536,1711743042867,-152.166,0.00051464,120]
[321004538,1711743042888,-197.0,0.00051464,2]
[321004540,1711743042905,-227.0,0.00051464,2]
[321004542,1711743042914,-150.0,0.00051467,7]
[321004544,1711743042926,-150.0,0.00051498,7]
[321004545,1711743042937,-4950.13,0.000515,7]
[321004547,1711743042947,-4950.13,0.000515,7]
[321004548,1711743042956,-4950.13,0.000515,7]
[321004549,1711743042965,-4950.13,0.000515,7]
[321004550,1711743042975,-4950.13,0.000515,7]
[321004551,1711743042984,-4950.13,0.000515,7]
[321004552,1711743042993,-4950.13,0.000515,7]
[321004553,1711743043002,-4950.13,0.000515,7]
[321004556,1711743043013,-4950.13,0.000515,7]
[321004558,1711743043024,-4950.13,0.000515,7]
[321004559,1711743043033,-4950.13,0.000515,7]
[321004560,1711743043043,-4950.13,0.000515,7]
[321004561,1711743043053,-4950.13,0.000515,7]
[321004562,1711743043062,-4950.13,0.000515,7]
[321004563,1711743043072,-4950.13,0.000515,7]
[321004564,1711743043081,-4950.13,0.000515,7]
[321004565,1711743043091,-4950.13,0.000515,7]
[321004566,1711743043100,-4950.13,0.000515,7]
[321004567,1711743043109,-4950.13,0.000515,7]
[321004568,1711743043119,-4950.13,0.000515,7]
[321004569,1711743043128,-151.0,0.000515,7]
[321004570,1711743043137,-640.024298,0.000515,60]
[321004571,1711743043146,-640.024298,0.000515,60]
[321004572,1711743043157,-151.0,0.000515,120]
[321004573,1711743043166,-151.0,0.000515,120]
[321004574,1711743043174,-151.0,0.000515,120]
[321004575,1711743043184,-198.411496,0.000515,120]
[321004576,1711743043193,-299.478877,0.000515,120]
[321004577,1711743043202,-198.411496,0.000515,120]
[321004578,1711743043212,-151.0,0.000515,120]
[321004579,1711743043221,-151.0,0.000515,120]
[321004580,1711743043231,-150.0,0.000515,10]
[321004581,1711743043241,-446.956826,0.000515,120]
[321004582,1711743043250,-151.0,0.000515,120]
[321004583,1711743043260,-446.956826,0.000515,120]
[321004584,1711743043269,-151.0,0.000515,120]
[321004585,1711743043279,-152.3,0.000515,7]
[321004586,1711743043288,-152.3,0.000515,7]
[321004587,1711743043298,-152.3,0.000515,7]
[321004588,1711743043308,-152.3,0.000515,7]
[321004589,1711743043318,-152.3,0.000515,7]
[321004590,1711743043328,-152.3,0.000515,7]
[321004591,1711743043337,-152.3,0.000515,7]
[321004592,1711743043347,-152.3,0.000515,7]
[321004593,1711743043357,-152.3,0.000515,7]
[321004594,1711743043367,-152.3,0.000515,7]
[321004595,1711743043376,-152.3,0.000515,7]
[321004596,1711743043388,-152.3,0.000515,7]
[321004597,1711743043398,-150.0,0.0005151,7]
[321004598,1711743043409,-150.0,0.00051527,7]
[321004599,1711743043418,-150.0,0.00051546,7]
[321004600,1711743043428,-150.0,0.00051565,7]
[321004601,1711743043438,-800.0,0.00051581,30]
[321004602,1711743043447,-150.0,0.00051586,7]
[321004603,1711743043457,-150.0,0.00051594,7]
[321004604,1711743043467,-17598.0,0.000516,120]
[321004605,1711743043476,-158.95,0.000516,7]
[321004606,1711743043485,-689.71934,0.000516,57]
[321004607,1711743043494,-689.71934,0.000516,57]
[321004608,1711743043504,-150.0,0.00051603,7]
[321004609,1711743043513,-151.0,0.00051616,120]
[321004610,1711743043523,-150.0,0.0005162,7]
[321004611,1711743043533,-689.71934,0.0005162,57]
[321004612,1711743043542,-313.8048114,0.0005165,2]
[321004613,1711743043552,-150.0,0.00051652,7]
[321004614,1711743043561,-150.0,0.00051655,7]
[321004615,1711743043571,-150.0,0.00051672,7]